[Event "FIDE WSTC Open 50 2025"]
[Site "Prague"]
[Date "2025.02.24"]
[Round "7.21"]
[White "Lesiege, Alexandre"]
[Black "Bischoff, Klaus"]
[Result "1/2-1/2"]
[Annotator "TA"]
[ECO "A58"]
[WhiteElo "2504"]
[BlackElo "2432"]
[PlyCount "60"]
[EventDate "2025.02.17"]
[EventType "team-tourn"]
[EventCountry "CZE"]
[SourceTitle "playchess.com"]
[Source "ChessBase"]
[SourceQuality "1"]
[TimeControl "40/5400+30:1800+30"]

{[%evp 9,60,9,59,52,51,60,56,35,32,32,42,42,33,30,45,40,48,41,44,41,52,29,60,64,63,64,56,28,24,29,47,6,70,42,35,0,0,0,6,0,7,15,4,0,135,132,125,57,58,0,0,0,0]} 1. d4 {[%emt 0:00:07]} Nf6 {[%emt 0:00:14]} 2. c4 {[%emt 0:00:07][%cal Bc2c4,Bc4b5,Bb5a6][%mdl 32]} c5 {[%emt 0:00:22]} 3. d5 {[%emt 0:00:16]} b5 {[%emt 0:00:12]} 4. cxb5 {[%emt 0:00:24]} a6 {[%emt 0:00:07]} 5. bxa6 {[%emt 0:00:18]} g6 {[%emt 0:00:15]} (5... e6 $1 $11) 6. Nc3 $14 {[%emt 0:00:13] A58: Benko/Volga Gambit: Lines with 5 bxa6.} Bg7 {[%emt 0:00:11][%cal Oe8g8]} 7. e4 {[%emt 0:01:37]} O-O {[%emt 0:00:30][%cal Oe7e6]} 8. Nf3 {[%emt 0:00:19] White is slightly better.} Qa5 {[%emt 0:00:41]} 9. Bd2 {[%emt 0:10:57]} Bxa6 {[%emt 0:00:26]} 10. Be2 {[%emt 0:03:24]} d6 {[%emt 0:01:23]} 11. O-O {[%emt 0:00:06]} Bxe2 {[%emt 0:04:27] Black sacrificed a pawn 11...Nbd7 is not played anymore.} 12. Qxe2 {[%emt 0:02:00]} Qa6 {[%emt 0:00:56]} 13. Qd1 {[%emt 0:07:29]} Nbd7 {[%emt 0:01:45]} 14. Qc2 {[%emt 0:01:34]} Rfb8 {[%emt 0:07:34]} 15. a4 {[%emt 0:01:39]} Qc4 {[%emt 0:07:14]} 16. Ra3 {[%emt 0:07:02]} Ng4 {[%emt 0:01:59]} 17. b3 {[%emt 0:15:41]} Qa6 {[%emt 0:00:43]} 18. h3 $146 {[%emt 0:11:12]} (18. Rb1 Nde5 19. Ne1 h5 20. h3 Nf6 21. f4 Ned7 22. Nf3 Ne8 23. Na2 Nc7 24. Bc1 {1-0 Pavlidou,E (2143)-Zhukova,N (2308) EU-chT (Women) 24th 2023 (5.3)}) 18... Nge5 {[%emt 0:00:42]} 19. Nxe5 {[%emt 0:00:03]} Nxe5 {[%emt 0:02:58]} 20. Nd1 {[%emt 0:07:55]} Qd3 {[%emt 0:03:05]} ({Better is} 20... c4 $1 $11) 21. Qxd3 {[%emt 0:00:59]} Nxd3 {[%emt 0:00:08]} 22. Ne3 {[%emt 0:12:24]} Bb2 {[%emt 0:08:18]} 23. Ra2 {[%emt 0:00:05]} Bd4 $1 {[%emt 0:00:25]} ({But not} 23... Rxb3 $6 24. Rb1 $16) 24. Rb1 {[%emt 0:03:46]} c4 {[%emt 0:01:10]} 25. Nxc4 {[%emt 0:00:39]} Nxf2 {[%emt 0:00:26]} 26. Bc3 {[%emt 0:01:56]} Bc5 {[%emt 0:09:31]} (26... Nxh3+ $11 27. Kh2 Bxc3 28. Kxh3 h5) 27. Rxf2 $16 {[%emt 0:00:12]} Rxa4 {[%emt 0:00:06] [#]} 28. Nd2 {[%emt 0:01:31]} Ra2 $14 {[%emt 0:00:29][%cal Oa2c2] [#] and ...Rc2! should not be overlooked} 29. Rbf1 $1 {[%emt 0:06:07]} Ba7 {[%emt 0:14:16][%cal Oa2c2]} 30. Nf3 {[%emt 0:03:32] and Bd4 would now be decisive} Bxf2+ {[%emt 0:02:17] Weighted Error Value: White=0.14 (very precise) /Black=0.13 (very precise)   Mistake:       	White=2     	Black=2      Inaccurate:     	White=4     	Black=1      OK:         	White=11    	Black=16     Best:        	White=1     	Black=2      Strong:       	---       	Black=1} 1/2-1/2

[Event "FIDE WSTC Open 50 2025"]
[Site "Prague"]
[Date "2025.02.24"]
[Round "7.22"]
[White "Seul, Georg"]
[Black "Duong, Thanh Nha"]
[Result "1-0"]
[Annotator "TA"]
[ECO "C24"]
[WhiteElo "2329"]
[BlackElo "2168"]
[PlyCount "129"]
[EventDate "2025.02.17"]
[EventType "team-tourn"]
[EventCountry "CZE"]
[SourceTitle "playchess.com"]
[Source "ChessBase"]
[SourceQuality "1"]
[TimeControl "40/5400+30:1800+30"]

{[%evp 10,129,28,5,12,8,0,3,1,22,11,5,16,30,38,27,37,23,12,12,23,19,24,24,22,18,19,23,20,0,80,30,62,20,121,90,137,65,49,50,86,0,0,0,0,-3,0,0,0,-16,-19,0,-8,-22,0,10,147,150,185,178,172,92,112,93,105,95,95,98,132,123,133,109,162,168,118,98,89,89,89,98,93,93,104,102,138,133,151,162,169,173,173,173,174,174,174,162,164,159,169,162,190,112,168,137,150,0,0,0,0,8,6107,796,29976,29975,29978,29978,29982,29983,29984,29985,29985,29986]} 1. e4 {[%emt 0:00:03]} e5 {[%emt 0:00:17]} 2. Bc4 {[%emt 0:00:12]} Nf6 {[%emt 0:00:14]} 3. d3 {[%emt 0:00:10]} c6 {[%emt 0:00:37]} 4. Nf3 {[%emt 0:00:11]} d5 {[%emt 0:00:16]} 5. Bb3 {[%emt 0:00:07]} Bb4+ {[%emt 0:00:58]} 6. c3 {[%emt 0:00:57]} Bd6 {[%emt 0:00:08] C24: Bishop's Opening: 2...Nf6.} 7. exd5 {[%emt 0:00:27]} cxd5 {[%emt 0:03:00]} 8. O-O {[%emt 0:00:22]} O-O {[%emt 0:01:04] The position is equal.} 9. Bg5 {[%emt 0:00:16]} Be6 {[%emt 0:05:12]} 10. c4 {[%emt 0:01:15]} dxc4 {[%emt 0:08:34]} 11. dxc4 {[%emt 0:00:29]} Nc6 $146 {[%emt 0:02:21]} ({Predecessor:} 11... e4 12. Nfd2 Be5 13. Nc3 Bxc3 14. bxc3 Na6 15. Bxf6 Qxf6 16. Nxe4 Qf4 17. Re1 Rad8 {½-½ Popov,I (2627)-Nesterov,A (2558) RUS-ch Higher League 76th 2023 (5)}) 12. Nc3 $1 {[%emt 0:02:05]} Be7 {[%emt 0:13:11]} 13. Qe1 {[%emt 0:09:47]} Nd7 {[%emt 0:04:20]} 14. Bxe7 {[%emt 0:04:32]} Qxe7 {[%emt 0:00:22]} 15. Nd5 {[%emt 0:01:19]} Qd8 {[%emt 0:06:30]} 16. h3 {[%emt 0:35:20]} Rc8 {[%emt 0:05:17]} 17. Rd1 {[%emt 0:01:28]} Re8 {[%emt 0:02:16]} 18. Qe3 {[%emt 0:05:41]} f6 {[%emt 0:07:51]} 19. Bc2 {[%emt 0:25:00]} g6 {[%emt 0:17:05]} (19... Na5 $11) 20. Qh6 $16 {[%emt 0:01:32][%cal Oc2g6] White attacks} Nf8 {[%emt 0:03:05]} 21. Bb1 {[%emt 0:00:55]} Kf7 {[%emt 0:04:27]} (21... Bxd5 $11 {remains equal.} 22. cxd5 Na5) 22. h4 {[%emt 0:02:30] White is much more active.} Bxd5 {[%emt 0:04:12]} (22... Kg8 $142) 23. Rxd5 {[%emt 0:00:12]} (23. cxd5 $16 Ne7 24. d6) 23... Qc7 $14 {[%emt 0:01:00]} 24. h5 {[%emt 0:03:03]} e4 {[%emt 0:00:24]} 25. hxg6+ {[%emt 0:00:07]} ({White should play} 25. Nd2 $16 f5 26. g4) 25... hxg6 $11 {[%emt 0:00:17]} 26. Nh4 {[%emt 0:00:22][%cal Oh4g6,Bf3h4,Bh4f5,Bf5d6][%mdl 32]} Ne5 {[%emt 0:04:35]} 27. Bxe4 {[%emt 0:01:39]} Ng4 {[%emt 0:00:10][%csl Gg4][%cal Rc7h2]} 28. Bxg6+ {[%emt 0:00:17]} Kg8 {[%emt 0:00:25][%csl Gg4][%cal Rc7h2]} 29. Bf7+ $1 {[%emt 0:00:14]} Qxf7 {[%emt 0:00:56]} 30. Qf4 $36 {[%emt 0:00:06][%mdl 2048] White has good play.} Ne5 {[%emt 0:00:44]} 31. Nf5 {[%emt 0:00:26]} (31. Qg3+ $5 Kh8 32. Nf5 $11) 31... Qh7 {[%emt 0:01:20][%cal Of8e6] Threatens to win with ...Ne6!.} (31... Rxc4 32. Qxc4 Nxc4 33. Nh6+ Kg7 34. Nxf7 Kxf7 35. Rc5) (31... Qg6 $5 32. Nd6 $8 Ne6 $14) 32. Nd6 {[%emt 0:00:26][%csl LRc8,LRe8,LRf6]} Nfg6 {[%emt 0:01:51]} (32... Qg6 $1 $11) 33. Qf5 $1 $16 {[%emt 0:01:01] The board is on fire.} (33. Qxf6 $2 Ng4 $19) 33... Rcd8 {[%emt 0:02:19]} 34. Nxe8 {[%emt 0:00:10]} Rxe8 {[%emt 0:00:13]} 35. Rfd1 {[%emt 0:00:30]} (35. Qxf6 $2 Ng4 36. Qd6 N6e5 $19) (35. f4 $18 Nf7 36. Qxf6) 35... Ne7 {[%emt 0:01:07][%cal Bg6e7,Be7c6,Bc6b4][%mdl 32]} 36. Qxh7+ {[%emt 0:00:16]} (36. Qxf6 Nxd5 37. cxd5 Qh5 $15) 36... Kxh7 {[%emt 0:00:01][%cal Bg8h7,Bh7g6,Bg6f5,Bf5e6,Be6d5][%mdl 32]} 37. Rd8 {[%emt 0:00:13]} Rxd8 {[%emt 0:01:12]} 38. Rxd8 {[%emt 0:00:03][%cal Bd1d8,Bd8c8,Bc8c7,Bc7b7][%mdl 32]} N7c6 {[%emt 0:00:54] Prevents Rb8.} 39. Rc8 {[%emt 0:00:53]} Kg6 {[%emt 0:00:21]} 40. Rc7 {[%emt 0:00:36]} Nxc4 {[%emt 0:00:50]} (40... Nd8 $16 41. f4 Ne6 42. Rxb7 Nxf4) 41. Rxb7 $18 {[%emt 0:30:07] Rc7 would now be deadly.} Kf5 {[%emt 0:06:09]} 42. Rc7 {[%emt 0:00:00]} N4e5 {[%emt 0:00:32] [#]} 43. b4 $1 {[%emt 0:00:00]} Nxb4 {[%emt 0:02:18]} 44. Rxa7 {[%emt 0:00:00]} Ke6 {[%emt 0:01:52]} 45. Kh2 {[%emt 0:00:00]} Nec6 {[%emt 0:05:15]} 46. Ra8 {[%emt 0:00:00]} Nd5 {[%emt 0:00:30]} 47. g4 {[%emt 0:00:00]} Nc7 {[%emt 0:01:35]} 48. Ra4 {[%emt 0:00:00]} Kd5 {[%emt 0:03:24]} 49. Kg3 {[%emt 0:00:00]} Ne6 {[%emt 0:00:11]} 50. f4 {[%emt 0:00:00][%cal Bf2f4,Bf4f5][%mdl 32]} Ncd4 {[%emt 0:03:45]} 51. f5 {[%emt 0:01:00]} Nc5 {[%emt 0:00:41]} 52. Ra5 {[%emt 0:00:20]} Nc6 {[%emt 0:00:27]} 53. Ra8 {[%emt 0:00:15]} Ne5 {[%emt 0:01:36]} 54. Kh4 {[%emt 0:00:36]} Ne4 {[%emt 0:01:16]} 55. Rd8+ {[%emt 0:01:48]} (55. a4 $18) 55... Kc6 {[%emt 0:00:25]} (55... Kc4 $16 {keeps fighting.} 56. a4 Nf3+ 57. Kh5 Kb4) 56. Re8 {[%emt 0:01:44]} Kd5 {[%emt 0:03:02]} 57. Re6 {[%emt 0:02:09]} (57. a4 $16) 57... Ng6+ $11 {[%emt 0:03:15]} 58. fxg6 {[%emt 0:01:17][%cal Oe6e4]} Kxe6 {[%emt 0:00:01][%mdl 4096] Endgame KN-K3P} 59. Kh5 {[%emt 0:00:48]} Ke7 $2 {[%emt 0:00:43][%mdl 8192] [#] Loses the game.} (59... f5 $11) 60. Kh6 $1 $18 {[%emt 0:01:17] Threatening mate with g7.} ({Worse is} 60. g7 Kf7 $11) 60... Kf8 {[%emt 0:00:20] [#]} 61. Kh7 $1 {[%emt 0:01:34] White mates.} Ng5+ {[%emt 0:00:13]} 62. Kh8 {[%emt 0:00:06]} Ne6 {[%emt 0:03:24]} 63. a4 {[%emt 0:00:17][%cal Ba2a4,Ba4a5,Ba5a6][%mdl 32]} Ng7 {[%emt 0:00:32]} 64. a5 {[%emt 0:00:08]} f5 {[%emt 0:00:03]} 65. a6 {[%emt 0:00:49] Weighted Error Value: White=0.17 (very precise) /Black=0.35  Loses game:     	---       	Black=1      Mistake:       	White=5     	Black=6      Inaccurate:     	White=1     	Black=5      OK:         	White=26    	Black=26     Best:        	White=3     	Black=2      Strong:       	White=4     	---} 1-0

[Event "FIDE WSTC Open 50 2025"]
[Site "Prague"]
[Date "2025.02.24"]
[Round "7.23"]
[White "Berube, Richard"]
[Black "Schulz, Klaus-Juergen"]
[Result "0-1"]
[Annotator "TA"]
[ECO "E12"]
[WhiteElo "2121"]
[BlackElo "2345"]
[PlyCount "110"]
[EventDate "2025.02.17"]
[EventType "team-tourn"]
[EventCountry "CZE"]
[SourceTitle "playchess.com"]
[Source "ChessBase"]
[SourceQuality "1"]
[TimeControl "40/5400+30:1800+30"]

{[%evp 14,110,79,73,85,81,82,83,78,35,83,95,111,81,93,88,94,53,91,29,29,19,50,54,58,63,77,71,87,41,68,34,46,32,37,39,61,56,48,31,37,1,37,0,0,0,0,0,10,10,20,7,18,0,0,0,0,0,-24,-27,0,0,0,0,0,0,0,0,0,-158,-83,-163,-150,-115,-75,-164,-170,-175,-162,-256,-253,-254,-233,-272,-236,-668,-635,-803,-800,-1087,-1066,-1016,-976,-795,-782,-1009,-1006,-896,-707]} 1. d4 {[%emt 0:00:13]} Nf6 {[%emt 0:01:32]} 2. Nf3 {[%emt 0:00:30]} e6 {[%emt 0:00:36]} 3. c4 {[%emt 0:01:37]} b6 {[%emt 0:02:54]} 4. a3 {[%emt 0:02:48]} Bb7 {[%emt 0:03:20]} 5. Nc3 {[%emt 0:00:14]} Be7 {[%emt 0:05:25]} 6. d5 {[%emt 0:02:44]} d6 {[%emt 0:18:59]} 7. e4 {[%emt 0:01:44]} e5 {[%emt 0:09:00]} 8. Bd3 {[%emt 0:01:50]} Nbd7 {[%emt 0:00:18] E12: Queen's Indian: Unusual White 4th moves, 4 a3, 4 Nc3 Bb7 5 a3 and 4 Nc3 Bb7 .} 9. b4 {[%emt 0:05:42]} O-O {[%emt 0:02:46]} 10. O-O {[%emt 0:03:15]} Nh5 {[%emt 0:04:05] White is better.} 11. Qc2 {[%emt 0:12:54]} g6 {[%emt 0:04:52]} (11... Nf4 $14) 12. Bh6 $16 {[%emt 0:01:30]} Ng7 {[%emt 0:02:51]} 13. Ne2 $146 {[%emt 0:10:37]} ({Predecessor:} 13. Rac1 Nf6 14. h3 Nfe8 15. g4 Bc8 16. Ne1 Bg5 17. Bxg5 Qxg5 18. f3 h5 19. Ng2 hxg4 20. fxg4 {0-1 Hajiverdiyev,C (1733)-Carasiov,A (1899) World School-ch U15 8th 2012 (7)}) 13... Nf6 {[%emt 0:00:42]} 14. h3 {[%emt 0:03:29]} Kh8 {[%emt 0:01:02]} 15. Ng3 {[%emt 0:04:47]} Ng8 {[%emt 0:00:21]} 16. Bxg7+ {[%emt 0:02:57]} (16. Bd2 $16) 16... Kxg7 $11 {[%emt 0:00:04]} 17. Rab1 {[%emt 0:03:21][%cal Oc4c5]} h5 {[%emt 0:10:36] [#]} 18. c5 $1 {[%emt 0:03:10]} Nh6 {[%emt 0:11:18]} (18... a5 19. c6) 19. Rfc1 {[%emt 0:04:14]} Bg5 {[%emt 0:00:22]} 20. Nxg5 {[%emt 0:02:57]} Qxg5 {[%emt 0:00:02]} 21. Rf1 {[%emt 0:01:35]} (21. Qb2 $16) 21... Rad8 $14 {[%emt 0:05:39]} 22. Qc1 {[%emt 0:10:05]} Qe7 {[%emt 0:02:04]} 23. Rb3 {[%emt 0:05:01]} h4 {[%emt 0:03:10]} 24. Ne2 {[%emt 0:00:32]} dxc5 {[%emt 0:02:20]} 25. bxc5 {[%emt 0:00:23]} f5 {[%emt 0:00:12]} 26. cxb6 {[%emt 0:04:49]} cxb6 {[%emt 0:00:18]} 27. Rc3 {[%emt 0:01:51]} Rc8 {[%emt 0:00:56] Against Rc7} (27... fxe4 {is interesting.} 28. Rc7 Rd7 29. Rxd7 Qxd7 30. Bxe4 Nf7) 28. f3 {[%emt 0:01:19]} fxe4 {[%emt 0:00:47]} 29. fxe4 {[%emt 0:00:13]} Rxf1+ {[%emt 0:01:10]} 30. Kxf1 {[%emt 0:00:36]} Rxc3 {[%emt 0:00:46]} 31. Qxc3 {[%emt 0:00:17]} Nf7 {[%emt 0:00:23]} 32. Kg1 {[%emt 0:01:21]} Nd6 {[%emt 0:00:38]} 33. Nf4 {[%emt 0:01:19]} (33. Kh2 {simplifies} Nf7 34. Ng1 Qc5 35. Qxc5 bxc5 36. Nf3) 33... Bc8 {[%emt 0:02:33] Prevents Ne6+.} 34. Ne6+ {[%emt 0:00:54]} Kf6 {[%emt 0:00:31]} 35. Qe1 {[%emt 0:02:12] [#]} Kf7 {[%emt 0:03:19]} 36. Qf2+ {[%emt 0:01:11]} Kg8 {[%emt 0:00:27]} 37. Qb2 {[%emt 0:01:36]} Qf6 {[%emt 0:00:15]} 38. Qb4 {[%emt 0:01:09]} Qe7 {[%emt 0:01:17]} 39. Qc3 {[%emt 0:00:19]} Kf7 {[%emt 0:00:43]} 40. Nc7 {[%emt 0:02:31]} Qg5 {[%emt 0:00:29]} 41. Bc4 $2 {[%emt 0:11:52]} (41. Kh1 $11) 41... Qf4 {[%emt 0:27:19]} (41... Nxe4 $142 42. d6+ Kg7 43. Ne8+ Kf8) 42. Nb5 {[%emt 0:08:24]} (42. Ne6 $17 Qf2+ (42... Qxe4 $2 {loses.} 43. Ng5+ Kf6 44. Nxe4+ $18) (42... Nxe4 43. Qb4 $15) 43. Kh1) 42... Nxe4 $19 {[%emt 0:01:11]} 43. Qe1 {[%emt 0:00:47][%cal Oe1e4] Qxe4! would now be deadly.} Kf6 {[%emt 0:00:48] Black is more active.} 44. Bd3 {[%emt 0:01:12]} (44. Nxa7 $17 Bf5 45. Nc6) 44... Nc5 $36 {[%emt 0:00:32][%mdl 2048] Black is in control.} 45. Bf1 {[%emt 0:00:48]} a6 {[%emt 0:00:52]} 46. Nc3 {[%emt 0:02:31]} (46. Nc7 {keeps fighting.}) 46... Bf5 {[%emt 0:00:29]} 47. Kh1 {[%emt 0:01:55]} g5 {[%emt 0:00:25]} 48. Qd1 {[%emt 0:04:32]} Qd4 {[%emt 0:01:01]} 49. Qh5 $2 {[%emt 0:00:14]} (49. Qf3) 49... Qxc3 {[%emt 0:00:24] Black is clearly winning.} 50. Qh8+ {[%emt 0:00:11]} Kf7 {[%emt 0:00:22][%cal Oc5e4]} 51. Qd8 {[%emt 0:01:31]} Qc1 {[%emt 0:00:53] ( -> ...Ne4)} 52. Qc7+ {[%emt 0:00:36]} Bd7 {[%emt 0:00:09]} 53. Kg1 {[%emt 0:00:47]} Qe3+ {[%emt 0:00:04]} 54. Kh1 {[%emt 0:00:13]} b5 {[%emt 0:00:51][%cal Oe3f2] Hoping for ...Qf2!.} 55. d6 {[%emt 0:00:46]} Qd4 {[%emt 0:00:52] Weighted Error Value: White=0.55/Black=0.12 (very precise)   Mistake:       	White=7     	Black=2      Inaccurate:     	White=5     	Black=5      OK:         	White=6     	Black=14     Best:        	---       	Black=3} 0-1

[Event "FIDE WSTC Open 50 2025"]
[Site "Prague"]
[Date "2025.02.24"]
[Round "7.24"]
[White "Wolf, Volker"]
[Black "Chabot, Roland"]
[Result "1-0"]
[Annotator "TA"]
[ECO "B40"]
[WhiteElo "2206"]
[BlackElo "2038"]
[PlyCount "127"]
[EventDate "2025.02.17"]
[EventType "team-tourn"]
[EventCountry "CZE"]
[SourceTitle "playchess.com"]
[Source "ChessBase"]
[SourceQuality "1"]
[TimeControl "40/5400+30:1800+30"]

{[%evp 9,127,12,1,1,9,0,8,8,12,15,8,8,0,-50,-46,-43,-45,-56,-24,-17,-21,-21,-13,-33,-22,-50,-48,-50,-49,-41,6,-33,-14,-20,-12,-10,10,7,12,9,14,9,20,33,65,57,77,77,71,81,70,24,20,0,229,226,232,140,262,277,433,406,361,312,310,324,316,304,506,430,402,145,330,408,415,0,0,0,452,444,391,0,46,0,456,456,456,0,456,456,456,456,445,444,2247,2314,2320,2320,2189,2189,2135,2079,1955,1566,1318,1108,672,567,5320,5212,5065,4622,5050,4798,4622,4614,1008,481,306,8]} 1. e4 {[%emt 0:00:15]} c5 {[%emt 0:17:15]} 2. Nf3 {[%emt 0:00:19]} e6 {[%emt 0:00:10]} 3. b3 {[%emt 0:00:21]} a6 {[%emt 0:00:16]} 4. Bb2 {[%emt 0:00:56]} Nc6 {[%emt 0:00:15]} 5. g3 {[%emt 0:02:27]} d5 {[%emt 0:02:11]} 6. exd5 {[%emt 0:01:02] B40: Sicilian: 2...e6, Unusual lines.} exd5 {[%emt 0:00:34]} 7. Qe2+ {[%emt 0:00:34]} Qe7 {[%emt 0:00:21]} 8. Qxe7+ {[%emt 0:02:47] The position is equal.} (8. Nc3 {seems wilder.} Bg4 9. O-O-O Nf6 10. h3) 8... Ngxe7 {[%emt 0:00:09]} 9. Bg2 {[%emt 0:01:09]} Nb4 {[%emt 0:03:47]} 10. Na3 {[%emt 0:01:09][%cal Bb1a3,Ba3c2,Bc2e1][%mdl 32]} Bf5 {[%emt 0:02:33]} 11. Kd1 $146 {[%emt 0:13:42]} (11. O-O $11) (11. O-O f6 12. d4 Nec6 13. c4 Be4 14. cxd5 Bxd5 15. Nc4 Rd8 16. Nb6 Bxf3 17. Bxf3 cxd4 {½-½ Cech,P (2354)-Haba,P (2454) CZE-chT2D 2223 2022 (6.1)}) 11... f6 $15 {[%emt 0:15:44]} 12. Ne1 {[%emt 0:03:48]} O-O-O {[%emt 0:05:12]} 13. c3 {[%emt 0:00:36]} Nd3 {[%emt 0:03:20]} 14. Nxd3 {[%emt 0:00:19]} Bxd3 {[%emt 0:00:02]} 15. Nc2 {[%emt 0:00:32] White is weak on the light squares} h5 {[%emt 0:06:12]} 16. h4 {[%emt 0:03:30]} Kb8 {[%emt 0:09:33]} 17. Ne1 {[%emt 0:07:23]} Bg6 {[%emt 0:02:09]} 18. d4 {[%emt 0:13:41]} Nc6 {[%emt 0:02:34]} 19. Nc2 {[%emt 0:02:57]} Bf7 {[%emt 0:05:08]} (19... cxd4 $15 {deserves consideration.} 20. cxd4 Nb4 21. Nxb4 Bxb4) 20. Kd2 {[%emt 0:06:09]} cxd4 {[%emt 0:02:08]} 21. Nxd4 {[%emt 0:00:26]} Nxd4 {[%emt 0:02:45]} 22. cxd4 {[%emt 0:00:03]} Bb4+ {[%emt 0:00:43]} 23. Bc3 {[%emt 0:00:59][%cal Bb2c3,Bc3b4,Bb4e7][%mdl 32]} Bd6 {[%emt 0:00:43]} 24. a3 {[%emt 0:03:55]} Rhe8 {[%emt 0:00:37]} 25. Rhe1 {[%emt 0:01:34]} b6 {[%emt 0:04:16]} 26. Bb4 {[%emt 0:03:07]} Bc7 {[%emt 0:00:27]} 27. a4 {[%emt 0:00:44]} a5 {[%emt 0:02:21]} 28. Be7 {[%emt 0:01:20]} Rd7 {[%emt 0:00:22]} 29. Ba3 {[%emt 0:00:09]} Rdd8 {[%emt 0:02:34]} 30. Bh3 {[%emt 0:04:42]} (30. Rac1 $14) 30... Re4 $11 {[%emt 0:01:42]} 31. Bf5 {[%emt 0:02:13]} Rde8 {[%emt 0:03:13]} 32. Bxe4 $18 {[%emt 0:02:39]} dxe4 {[%emt 0:00:06]} 33. Re3 {[%emt 0:04:09]} f5 {[%emt 0:00:29]} (33... g5 $16) 34. Rc3 {[%emt 0:00:35]} f4 {[%emt 0:01:12]} (34... e3+ 35. fxe3 (35. Rxe3 Rxe3 36. Kxe3 Bxb3 $18) 35... Kb7) 35. Rac1 {[%emt 0:07:00]} e3+ {[%emt 0:00:18]} 36. fxe3 {[%emt 0:00:47]} fxe3+ {[%emt 0:00:12]} 37. Ke2 {[%emt 0:00:13]} (37. Rxe3 $6 Rxe3 38. Kxe3 Bxb3 $18) 37... Bxg3 {[%emt 0:00:50][%cal Of7e6]} 38. Rg1 {[%emt 0:00:48]} Bf2 {[%emt 0:01:14]} (38... Bh2 {was necessary.} 39. Rxg7 Bd5) 39. Rxg7 {[%emt 0:00:45]} Be6 {[%emt 0:01:25]} 40. Bd6+ {[%emt 0:02:08]} Ka8 {[%emt 0:00:10]} 41. Rcc7 $1 {[%emt 0:30:25][%csl Gg7][%cal Rc7a7]} Bg4+ {[%emt 0:30:14]} 42. Kf1 {[%emt 0:04:53][%csl Gg7][%cal Rc7a7]} Bh3+ $1 {[%emt 0:00:48]} (42... e2+ 43. Kg2 e1=N+ 44. Kh1 (44. Kxf2 Nd3+ 45. Kg2 Re2+ 46. Kh1 Re1+ 47. Kh2 Re2+ 48. Kg1 Re1+ 49. Kh2 Re2+ 50. Kg1 Re1+ 51. Kh2 $11) (44. Kf1 Bh3+ 45. Kxf2 Nd3+ 46. Kg3 Re3+ 47. Kh2 Re2+ 48. Kxh3 Nf2+ 49. Kg3 Ne4+ 50. Kf3 Nxd6) 44... Bf3+ 45. Kh2) 43. Ke2 {[%emt 0:00:16][%csl Gg7][%cal Rc7a7]} Bg4+ {[%emt 0:00:07] [#]} 44. Kd3 $1 {[%emt 0:03:15][%csl Gg7][%cal Rc7a7]} Bf5+ {[%emt 0:00:11]} 45. Ke2 $2 {[%emt 0:00:00]} (45. Kc4 Rc8 46. Rge7 Rxc7+ 47. Bxc7 Bg4 $18) (45. Kc3 $18 {[%csl Gg7][%cal Rc7a7]} Rc8 46. Rxc8+ Bxc8 47. Bg3) 45... Bg4+ $14 {[%emt 0:00:00] A strong pair of Bishops.} 46. Kd3 $2 {[%emt 0:00:00][%mdl 8192]} (46. Rxg4 $1 $14 hxg4 47. h5) 46... Bf5+ $18 {[%emt 0:00:00]} 47. Kc3 {[%emt 0:00:00][%csl Gg7][%cal Rc7a7]} (47. Kc4 Rc8 48. Rge7 Bg4 $18) 47... Rc8 {[%emt 0:00:00]} 48. Rxc8+ {[%emt 0:00:00]} Bxc8 {[%emt 0:00:00][%mdl 4096] Endgame [#] KRB-KB} 49. Bg3 $1 {[%emt 0:00:00]} Be6 {[%emt 0:00:00]} 50. Rg5 {[%emt 0:00:00] Repels Bd5} Kb7 {[%emt 0:00:00]} 51. d5 {[%emt 0:00:00]} Bxd5 {[%emt 0:00:00]} (51... Bh3 $142 52. Re5 Bg2 (52... Bxg3 $2 53. Rxe3 Bg2 54. Rxg3 $18)) 52. Bxf2 {[%emt 0:00:00]} exf2 {KR-KB} 53. Rf5 $1 (53. Rxd5 $2 f1=Q (53... f1=R 54. Rxh5 Rf3+ 55. Kc4 $14) 54. Rd7+ Kc6 $19) 53... Be6 {[%emt 0:00:00]} 54. Rxf2 {[%emt 0:00:00]} (54. Rxh5 $2 f1=Q (54... f1=B $2 {perishes.} 55. Re5 $18) 55. Rg5 Bf5 56. Rxf5 Qxf5 $19) 54... Bg4 {[%emt 0:00:00]} 55. Rf6 {[%emt 0:00:00]} Kc7 {[%emt 0:00:00]} 56. Rh6 {[%emt 0:00:40]} Kb7 {[%emt 0:00:00]} 57. Kd4 {[%emt 0:01:21] Kd5 would now be deadly.} Bd1 {[%emt 0:00:00]} 58. Kc4 {[%emt 0:00:14]} Be2+ {[%emt 0:00:00]} 59. Kd5 {[%emt 0:00:44]} Bd1 {[%emt 0:00:00]} 60. Rh7+ {[%emt 0:01:46]} Ka6 {[%emt 0:00:00]} 61. Kc6 {[%emt 0:01:50]} Bxb3 {[%emt 0:00:00]} 62. Rxh5 {[%emt 0:00:08] Intending Kc7 and mate.} Bxa4+ {[%emt 0:00:00]} 63. Kc7 {[%emt 0:00:47]} (63. Kd6 $142 Bd1 64. Rd5) 63... Bc2 {[%emt 0:00:00]} 64. Rh6 $2 {[%emt 0:00:13][%mdl 32768] Weighted Error Value: White=0.42/Black=0.48 Loss on time!?  Loses game:     	---       	Black=3      Missed win:     	White=1     	---        Mistake:       	White=3     	Black=5      Inaccurate:     	White=3     	Black=2      OK:         	White=19    	Black=13     Best:        	White=8     	Black=9      Strong:       	White=3     	Black=1} ({White should play} 64. Kd6 $18) 1-0